Cogmind - Beta 10.2 @@@ ROGUE MODE // 2020.12.30 @ 12:30:29 Player: Demise Result: Destroyed by G-47 Trooper with Particle Gun Performance ------------- Evolutions (3) 1500 Regions Visited (8) 1600 Robots Destroyed (183) 915 Value Destroyed (5078) 5078 Prototype IDs (46) 920 Alien Tech Used (0) 0 Bonus (483) 483 TOTAL SCORE: 10496 Bonus ------- High Alert Combat Kills 219 Follower Combat Kills 141 Aligned with FarCom 300 Friendly Fire -177 Cogmind --------- Core Integrity 0/700 Matter 81/300 Energy 100/100 System Corruption 1% Temperature Cool (18) Movement Treading (280) Ox6 Location -7/Factory Parts ------- > --- POWER (1) -------- (None) > --- PROPULSION (2) --- Light Treads Advanced Myomer Leg > --- UTILITY (8) ------ High-capacity Storage Unit High-capacity Storage Unit High-capacity Storage Unit High-capacity Storage Unit Advanced Signal Interpreter Power Shielding Hacking Suite EX Chip 2 > --- WEAPON (2) ------- Enhanced Autogun > --- INVENTORY (36) --- Improved VTOL Module Improved VTOL Module Improved VTOL Module Experimental Heat Sink High-capacity Storage Unit High-capacity Matter Pod (200) Advanced Signal Interpreter EX Chip 1 Advanced Recalibrator Thief Drone Bay (3/3) Army-in-a-Box (30/30) Guided Plasma Cannon YOLO Cannon Peak State ------------ > --- POWER ------------ Light Nuclear Core > --- PROPULSION ------- Medium Treads Medium Treads > --- UTILITY ---------- High-capacity Storage Unit High-capacity Storage Unit High-capacity Storage Unit Humpback Advanced Signal Interpreter Hacking Suite EX Chip 2 > --- WEAPON ----------- Flak Gun Assault Cannon > --- INVENTORY -------- Makeshift Power Source Medium Treads Medium Treads Advanced Myomer Leg Advanced Myomer Leg Combat Antigrav System Improved VTOL Module Improved VTOL Module Improved VTOL Module Improved VTOL Module Improved VTOL Module Experimental Heat Sink High-capacity Storage Unit High-capacity Storage Unit High-capacity Matter Pod Advanced Signal Interpreter Experimental Targeting Computer Improved Armor Integrity Analyzer Power Shielding Power Shielding Improved Utility Shielding Improved Utility Shielding Hardened Medium Armor Plating Improved Light Armor Plating Improved Light Armor Plating EX Chip 1 EX Chip 2 System Backup Module Advanced Recalibrator Thief Drone Bay Army-in-a-Box Guided Plasma Cannon YOLO Cannon Enhanced Autogun Enhanced Autogun Enhanced Autogun Flak Gun Flak Gun Flak Gun Heavy Rocket Launcher Scythe Deploy-a-Sentry [Rating: 55] Favorites ----------- Power Improved Ion Engine Engine Improved Ion Engine Power Core Light Nuclear Core Propulsion Light Treads Treads Light Treads Leg Advanced Myomer Leg Wheel Wheel Utility High-capacity Storage Unit Device Thief Drone Bay Storage High-capacity Storage Unit Processor Armor Integrity Analyzer Hackware EX Chip 2 Protection Improved Light Armor Plating Weapon Heavy Assault Rifle Energy Gun EM Pulse Gun Energy Cannon EM Pulse Cannon Ballistic Gun Heavy Assault Rifle Ballistic Cannon Flak Cannon Launcher Mini Grenade Launcher Special Weapon Mining Laser Slashing Weapon Katana Special Melee Weapon Datajack Build | -11 -10 -10 -9 -9 -9 -8 -8 -7 ------- Run | Scr Mat Min Mat Min Exi Min Mat Fac Slots Evolved 6 | . . . 2 . . . 2 2 Power . | . . . . . . . . . Propulsion . | . . . . . . . . . Utility 6 | . . . 2 . . . 2 2 Weapon . | . . . . . . . . . Parts Attached 194 | 7 20 3 55 . 25 11 49 24 Power 28 | 1 3 3 7 . 4 2 6 2 Engine 17 | 1 3 1 7 . 4 . 1 . Core 11 | . . 2 . . . 2 5 2 Reactor . | . . . . . . . . . Propulsion 35 | 2 3 . 11 . 7 2 5 5 Treads 31 | . 2 . 11 . 7 2 5 4 Leg 1 | . . . . . . . . 1 Wheel 3 | 2 1 . . . . . . . Hover . | . . . . . . . . . Flight . | . . . . . . . . . Utility 48 | 2 4 . 13 . 5 3 15 6 Device 1 | . . . . . . . 1 . Storage 25 | 2 4 . 5 . 3 3 7 1 Processor 2 | . . . . . 1 . . 1 Hackware 2 | . . . . . . . . 2 Protection 18 | . . . 8 . 1 . 7 2 Artifact . | . . . . . . . . . Weapon 83 | 2 10 . 24 . 9 4 23 11 Energy Gun 5 | 1 3 . . . . . . 1 Energy Cannon 11 | . . . 9 . 1 1 . . Ballistic Gun 45 | 1 6 . 12 . 3 1 15 7 Ballistic Cannon 5 | . . . . . 1 1 2 1 Launcher 4 | . . . . . 2 . . 2 Special Weapon 7 | . 1 . 3 . . . 3 . Impact Weapon . | . . . . . . . . . Slashing Weapon 5 | . . . . . 1 1 3 . Piercing Weapon . | . . . . . . . . . Special Melee Weapon 1 | . . . . . 1 . . . Unidentified Prototypes 2 | . . . 1 . . . 1 . Parts Lost 37 | . 9 . 3 . 5 1 . 19 Power 8 | . 3 . . . 2 . . 3 Propulsion 8 | . 1 . . . 2 . . 5 Utility 4 | . . . 2 . . . . 2 Weapon 17 | . 5 . 1 . 1 1 . 9 Highest Loss Streak 11 | . 3 . 2 . 5 1 . 11 Average Slot Usage (%) 92 | . 94 99 99 100 87 80 89 88 Engine 7 | . 10 11 10 11 10 . 1 . Core 3 | . . 2 . . . 10 7 5 Treads 20 | . 18 28 22 22 22 22 18 12 Storage 30 | . 28 28 32 44 26 25 32 29 Processor 1 | . . . . . 6 . . 6 Protection 5 | . . . 11 . 3 . 11 2 Energy Cannon 4 | . . . 5 22 5 1 . . Ballistic Gun 12 | . 19 28 16 . 6 7 16 8 Ballistic Cannon 1 | . . . . . . 10 . 4 Naked Turns . | . . . . . . . . . Heaviest Build 222 | 16 72 72 147 147 174 178 222 222 Greatest Support 56 | 20 40 40 43 43 43 40 56 56 Greatest Overweight (x) 6 | . 3 1 3 3 4 4 4 6 Average Overweight (x) 2 | . . 1 2 3 2 3 3 3 Largest Inventory Capacity 60 | 8 20 20 36 36 44 44 60 56 Average Capacity 33 | 6 16 20 27 36 31 42 45 43 Most Carried 51 | 8 20 20 36 36 44 44 51 51 Average Carried 32 | 5 15 19 27 35 28 41 44 39 Final Capacity 56 | 8 20 20 36 36 44 40 56 36 Final Carried 51 | 8 20 20 36 36 44 40 51 19 Class Distribution -------------------- 93% | Hauler-Mutant 4% | Mutant Dominant Class ---------------- Hauler-Mutant | -10/Materials Hauler-Mutant | -10/Mines Hauler-Mutant | -9/Materials Hauler-Mutant | -9/Mines Hauler-Mutant | -9/Exiles Hauler-Mutant | -8/Mines Hauler-Mutant | -8/Materials Hauler-Mutant | -7/Factory Resources | -11 -10 -10 -9 -9 -9 -8 -8 -7 ----------- Run | Scr Mat Min Mat Min Exi Min Mat Fac Matter Collected 5302 | 371 731 120 941 24 582 572 1471 490 Remotely . | . . . . . . . . . Salvage Created 7274 | 217 888 339 1631 53 548 640 2174 784 Parts 438 | 11 51 26 109 4 40 29 128 40 Haulers Intercepted 9 | . 2 . 3 . . . 4 . Recyclers Shooed 8 | . 2 . 4 . . . 1 1 Parts Field Recycled . | . . . . . . . . . Retrieved Matter . | . . . . . . . . . Parts Self-Destructed . | . . . . . . . . . Prevented . | . . . . . . . . . Kills | -11 -10 -10 -9 -9 -9 -8 -8 -7 ------- Run | Scr Mat Min Mat Min Exi Min Mat Fac Combat Hostiles Destroyed 126 | . 17 8 27 3 5 15 36 15 Guns 100 | . 17 8 23 . 2 4 35 11 Cannons 20 | . . . 4 3 . 11 1 1 AOE 6 | . . . . . 3 . . 3 Classes Destroyed 17 | 3 5 . 2 . 3 1 1 2 Worker 8 | 2 1 . 1 . . 1 3 . Builder 1 | . . . . . . . . 1 Tunneler 8 | 4 . 2 . . . 2 . . Hauler 9 | . 2 . 3 . . . 4 . Recycler 10 | 1 1 . 4 . . 1 1 2 Operator 3 | . 2 . 1 . . . . . Turret 1 | . . . . . 1 . . . Watcher 10 | . 2 . 4 . . . 3 1 Swarmer 23 | . 3 3 7 3 . 4 3 . Grunt 71 | . 14 5 10 . . 9 22 11 Brawler 5 | . . . 1 . . 1 2 1 Duelist 2 | . . . . . . 1 1 . Sentry 18 | . . . 9 . . . 7 2 Hunter 1 | . . . . . . . 1 . Programmer 1 | . . . . . . . . 1 Zionite 8 | . . . . . 8 . . . Assembled 4 | . . . . . 4 . . . Thug 1 | . . . . . 1 . . . Best Kill Streak 13 | 5 8 5 4 2 3 4 7 13 Combat Bots Only 7 | . 7 5 4 2 3 4 7 5 Max Kills in Single Turn 2 | 1 2 2 2 1 1 1 2 2 Gunslinging 1 | . 1 1 1 . . . . . Exploded 1 | . . . . . 1 . . 1 Melee . | . . . . . . . . . Uniques/NPCs Destroyed 4 | . . . . . 4 . . . 8R-AWN (-9/Exiles) EX-BIN (-9/Exiles) EX-DEC (-9/Exiles) EX-HEX (-9/Exiles) Combat | -11 -10 -10 -9 -9 -9 -8 -8 -7 -------- Run | Scr Mat Min Mat Min Exi Min Mat Fac Damage Taken 9693 | . 1161 120 1600 117 922 574 1755 3444 Core 1365 | . 160 . 215 7 67 50 166 700 Absorbed by Shields . | . . . . . . . . . Core Remaining (%) 55 | 100 . 36 . . . 15 69 . Volleys Fired 707 | 23 120 19 148 7 135 36 161 58 Largest 2 | 1 2 2 2 2 2 2 2 2 Hottest 126 | 40 100 40 112 126 63 92 100 90 Shots Fired 1199 | 23 215 38 280 14 162 72 292 103 Gun 898 | 23 200 38 212 . 62 31 251 81 Cannon 236 | . . . 59 14 86 41 23 13 Launcher 23 | . . . . . 14 . . 9 Special 42 | . 15 . 9 . . . 18 . Kinetic 911 | 1 167 38 212 . 62 72 267 92 Thermal 83 | . 40 . 23 . . . 18 2 Explosive 23 | . . . . . 14 . . 9 Electromagnetic 182 | 22 8 . 45 14 86 . 7 . Robot Hit Streak 21 | 5 18 6 13 6 17 20 21 15 Robot Miss Streak 11 | 3 5 4 4 1 3 3 11 5 Penetration Max . | . . . . . . . . . Secondary Targets 16 | . 4 1 4 . . . 3 4 Max Gunslinging Chain 1 | . 1 1 1 . . . 1 1 Shots Hit Robots 840 | 16 129 21 184 9 127 63 207 84 Core Hits 432 | 7 51 15 63 3 59 48 123 63 Critical Hits 10 | . 1 . 3 . 3 1 1 1 Critical Kills 5 | . 1 . 2 . . . 1 1 Critical Parts Destroyed 3 | . . . 1 . 1 1 . . Melee Attacks 32 | . . . . . 15 14 3 . Impact . | . . . . . . . . . Slashing 29 | . . . . . 12 14 3 . Piercing . | . . . . . . . . . Sneak Attacks 8 | . . . . . 3 5 . . Combat Hostiles . | . . . . . . . . . Follow-up Attacks . | . . . . . . . . . Damage Inflicted 14913 | 293 1157 289 2417 176 3238 1489 3601 2253 Guns 8734 | 252 1148 263 1563 . 762 401 3255 1090 Cannons 2419 | . . . 829 176 481 520 222 191 Explosions 1902 | 41 . . 25 . 864 . . 972 Melee 1723 | . . . . . 1131 496 96 . Ramming 111 | . 9 26 . . . 72 4 . Kinetic 8976 | 10 886 263 1563 . 762 921 3305 1266 Thermal 862 | 41 210 . 283 . 289 . 24 15 Explosive 1545 | . . . . . 573 . . 972 Electromagnetic 1696 | 242 52 . 571 176 483 . 172 . Impact . | . . . . . . . . . Slashing 1723 | . . . . . 1131 496 96 . Piercing . | . . . . . . . . . Highest Corruption 3 | . 3 3 . . . . . 1 Average Corruption 2 | . 1 3 . . . . . 1 Corruption Purged . | . . . . . . . . . Effects 28 | . 8 16 . . . . . 4 Message Errors 11 | . 3 6 . . . . . 2 Matter Fused 3 | . . 3 . . . . . . Heat Flow Errors 3 | . 1 2 . . . . . . Energy Discharges 5 | . 2 3 . . . . . . Data Loss (minor) 3 | . 1 2 . . . . . . Targeting Errors 3 | . 1 . . . . . . 2 Overload Shots . | . . . . . . . . . Overflow Damage 589 | . . . 25 2 266 237 11 48 Projectiles 55 | . . . 25 2 4 . 11 13 Explosions 52 | . . . . . 17 . . 35 Melee 482 | . . . . . 245 237 . . Knockbacks 16 | . . . . . . 15 . 1 Impact 1 | . . . . . . 1 . . Kinetic 11 | . . . . . . 10 . 1 Secondary 4 | . . . . . . 4 . . Self-Inflicted Damage 114 | . 4 . . . . . . 110 Shots 6 | . . . . . . . . 6 Rammed 6 | . 2 1 . . . 2 1 . Targets Rammed 6 | . 2 1 . . . 2 1 . Kicked . | . . . . . . . . . Crushed . | . . . . . . . . . Highest Temperature 297 | . 146 118 297 138 140 135 151 126 Average Temperature 48 | . 47 33 68 70 54 37 33 37 Received Heat Transfer 3606 | . 384 51 510 . . 234 837 1590 Effects 1 | . . . 1 . . . . . Energy Bleed 1 | . . . 1 . . . . . Siege Activations . | . . . . . . . . . Robots Corrupted 1 | 1 . . . . . . . . Combat Hostiles . | . . . . . . . . . Parts Fried 22 | 1 . . 7 . 13 . 1 . Impact Corruptions 2 | . . . . . . 2 . . Robots Melted . | . . . . . . . . . Combat Hostiles . | . . . . . . . . . Parts Melted . | . . . . . . . . . Heat Transferred 1460 | 50 629 . 494 . 200 . 50 37 Parts Sabotaged . | . . . . . . . . . Parts Stolen . | . . . . . . . . . Parts Stripped . | . . . . . . . . . Power Chain Reactions 7 | 1 . . 1 . 5 . . . Missiles Intercepted . | . . . . . . . . . Alert | -11 -10 -10 -9 -9 -9 -8 -8 -7 ------- Run | Scr Mat Min Mat Min Exi Min Mat Fac Peak Influence 727 | 35 309 120 392 136 . 170 727 512 Initial 330 | . 22 . 19 70 . . 1 330 Average 150 | 15 115 41 184 50 . 61 234 375 Maximum Alert Level 3 | . 1 . 1 . . . 3 2 Low Security (%) 72 | 100 90 100 49 100 . 100 58 . Level 1 20 | . 9 . 50 . . . 18 71 Level 2 6 | . . . . . . . 22 28 Level 3 . | . . . . . . . . . Level 4 . | . . . . . . . . . Level 5 . | . . . . . . . . . High Security . | . . . . . . . . . Max Security . | . . . . . . . . . Squads Dispatched 21 | . 4 . 1 1 . 1 6 8 Investigation 9 | . 1 . . . . 1 5 2 Extermination 1 | . . . . . . . . 1 Reinforcement 7 | . 3 . 1 . . . 1 2 Assault 1 | . . . . 1 . . . . Garrison 3 | . . . . . . . . 3 Intercept . | . . . . . . . . . Construction Impeded 2 | . . . . . . . . 2 Haulers Reinforced . | . . . . . . . . . Stealth | -11 -10 -10 -9 -9 -9 -8 -8 -7 --------- Run | Scr Mat Min Mat Min Exi Min Mat Fac Distress Signals 8 | . 2 . 3 1 . 1 1 . Communications Jammed . | . . . . . . . . . Distress Signals . | . . . . . . . . . Times Spotted 225 | . 36 8 46 11 28 15 60 21 Peak Tracking Total 9 | . 5 3 6 4 9 3 8 5 Tactical Retreats 12 | . . . 3 . 6 . 3 . Traps | -11 -10 -10 -9 -9 -9 -8 -8 -7 ------- Run | Scr Mat Min Mat Min Exi Min Mat Fac Traps Triggered 5 | . 1 . . 1 . . 3 . Indirectly . | . . . . . . . . . Trap Hack Attempts . | . . . . . . . . . Triggered . | . . . . . . . . . Disarmed . | . . . . . . . . . Reprogrammed 5 | . . . 5 . . . . . Reused 4 | . . . . . 4 . . . Traps Extracted . | . . . . . . . . . Installed 4 | . . . . . 4 . . . Triggered . | . . . . . . . . . Exploded 3 | . . . . . 3 . . . Machines | -11 -10 -10 -9 -9 -9 -8 -8 -7 ---------- Run | Scr Mat Min Mat Min Exi Min Mat Fac Machines Disabled 18 | . . . . 1 9 1 4 3 Max in Single Turn 2 | . . . . 1 2 1 1 2 Garrison Access 1 | . . . . . . . 1 . Machines Sabotaged . | . . . . . . . . . Garrisons Compromised . | . . . . . . . . . Overloaded Fab Kills . | . . . . . . . . . Fab Network Shutdowns . | . . . . . . . . . Hacking | -11 -10 -10 -9 -9 -9 -8 -8 -7 --------- Run | Scr Mat Min Mat Min Exi Min Mat Fac Machines Accessed 46 | . 8 . 16 2 2 1 14 3 Terminals 28 | . 5 . 11 . . 1 9 2 Fabricators . | . . . . . . . . . Repair Stations 5 | . 1 . 2 . . . 1 1 Recycling Units 5 | . 2 . 2 . . . 1 . Scanalyzers 3 | . . . 1 . . . 2 . Garrison Access 1 | . . . . . . . 1 . Total Hacks 135 | . 29 . 53 2 2 3 38 8 Successful 96 | . 18 . 43 2 2 1 26 4 Failed 37 | . 11 . 9 . . 2 11 4 Catastrophic 4 | . . . 1 . . 1 1 1 Database Lockouts 2 | . . . 1 . . . 1 . Manual 70 | . 16 . 22 . 1 2 24 5 Terminals 90 | . 21 . 37 . . 3 24 5 Fabricators . | . . . . . . . . . Repair Stations 15 | . 2 . 8 . . . 2 3 Recycling Units 12 | . 6 . 4 . . . 2 . Scanalyzers 13 | . . . 4 . . . 9 . Garrison Access 1 | . . . . . . . 1 . Terminal Hacks 32 | . 5 . 17 2 2 1 4 1 Record 2 | . . . . . 1 1 . . Part Schematic 1 | . . . . . . . 1 . Robot Analysis 8 | . 4 . 4 . . . . . Prototype ID Bank 4 | . . . 3 . . . 1 . Open Door 2 | . . . . 2 . . . . Branch Access Points 1 | . . . 1 . . . . . Terminal Index 4 | . 1 . 1 . . . 1 1 Unreport Threat 1 | . . . 1 . . . . . Reprogram Traps 1 | . . . 1 . . . . . Hauler Manifests 1 | . . . 1 . . . . . Registered Components 1 | . . . 1 . . . . . Zone Layout 5 | . . . 4 . . . 1 . EX-Prototype ID Bank 1 | . . . . . 1 . . . Fabricator Hacks . | . . . . . . . . . Repair Station Hacks 13 | . 2 . 8 . . . 2 1 Scan Component 7 | . 1 . 4 . . . 1 1 Repair 6 | . 1 . 4 . . . 1 . Recycling Unit Hacks 6 | . 3 . 2 . . . 1 . Report Inventory 1 | . 1 . . . . . . . Retrieve Components 5 | . 2 . 2 . . . 1 . Scanalyzer 12 | . . . 4 . . . 8 . Insert Component 6 | . . . 2 . . . 4 . Analyze 6 | . . . 2 . . . 4 . Garrison Access Hacks 1 | . . . . . . . 1 . Seal Access 1 | . . . . . . . 1 . Unauthorized Hacks 32 | . 8 . 12 . . . 10 2 Terminals 28 | . 6 . 11 . . . 9 2 Track 7 | . 1 . 5 . . . 1 . Assimilate 4 | . 1 . 1 . . . 2 . Botnet 14 | . 3 . 5 . . . 5 1 Operators 3 | . 1 . . . . . 1 1 Fabricators . | . . . . . . . . . Repair Stations . | . . . . . . . . . Recycling Units 4 | . 2 . 1 . . . 1 . Reject 1 | . 1 . . . . . . . Mask 3 | . 1 . 1 . . . 1 . Scanalyzers . | . . . . . . . . . Garrison Access . | . . . . . . . . . Data Cores Recovered . | . . . . . . . . . Used . | . . . . . . . . . Hacking Detections 32 | . 5 . 12 . . 1 11 3 Full Trace Events 8 | . 3 . . . . 1 2 2 Feedback Events 1 | . . . . . . . . 1 Corruption 1 | . . . . . . . . 1 Feedback Blocked . | . . . . . . . . . Robot Schematics Acquired . | . . . . . . . . . Robots Built . | . . . . . . . . . Matter . | . . . . . . . . . Time . | . . . . . . . . . Total Robot Build Rating . | . . . . . . . . . Part Schematics Acquired 5 | . . . 2 . . . 3 . Parts Built . | . . . . . . . . . Matter . | . . . . . . . . . Time . | . . . . . . . . . Total Part Build Rating . | . . . . . . . . . Parts Repaired 6 | . 1 . 4 . . . 1 . Time 186 | . 26 . 122 . . . 38 . Parts Recycled . | . . . . . . . . . Recycled Matter . | . . . . . . . . . Retrieved Matter . | . . . . . . . . . Retrieved Components 27 | . 10 . 11 . . . 6 . Parts Scanalyzed 6 | . . . 2 . . . 4 . Part Schematics Acquired 4 | . . . 2 . . . 2 . Parts Damaged . | . . . . . . . . . Bothacking | -11 -10 -10 -9 -9 -9 -8 -8 -7 ------------ Run | Scr Mat Min Mat Min Exi Min Mat Fac Used RIF Installer . | . . . . . . . . . Robots Hacked 3 | . . . . . 3 . . . Non-combat 2 | . . . . . 2 . . . Combat 1 | . . . . . 1 . . . Robot Hacks Applied 3 | . . . . . 3 . . . parse_system 3 | . . . . . 3 . . . Relay Couplers Released . | . . . . . . . . . Robots Rewired . | . . . . . . . . . Allies Hacked . | . . . . . . . . . Hacks Repelled . | . . . . . . . . . Allies | -11 -10 -10 -9 -9 -9 -8 -8 -7 -------- Run | Scr Mat Min Mat Min Exi Min Mat Fac Total Allies 4 | . 1 . 1 1 . . 1 . Largest Group 2 | . 1 1 1 2 2 1 1 . Highest-Rated Group 41 | . 10 10 10 41 41 10 26 . Highest-Rated Ally 31 | . 10 10 10 31 31 10 26 . Total Orders 15 | . . 2 7 4 2 . . . STAY 8 | . . 1 4 2 1 . . . FOLLOW 7 | . . 1 3 2 1 . . . Ally Attacks 17 | . . . . 17 . . . . Total Damage 278 | . . . . 278 . . . . Kills 8 | . . . . 8 . . . . Allies Corrupted . | . . . . . . . . . Allies Melted . | . . . . . . . . . Intel | -11 -10 -10 -9 -9 -9 -8 -8 -7 ------- Run | Scr Mat Min Mat Min Exi Min Mat Fac Robot Analysis Total 8 | . 4 . 4 . . . . . Derelict Logs Recovered 2 | . . 2 . . . . . . Drone Launches . | . . . . . . . . . Drone Recoveries . | . . . . . . . . . Exploration | -11 -10 -10 -9 -9 -9 -8 -8 -7 ------------- Run | Scr Mat Min Mat Min Exi Min Mat Fac Turns Passed 17377 | 127 1661 1031 3303 1715 3496 1945 3550 549 Spaces Moved 7123 | 77 859 529 1304 733 1393 750 1312 166 Core 10 | 10 . . . . . . . . Treads 6684 | . 507 529 1304 733 1393 750 1312 156 Legs 10 | . . . . . . . . 10 Wheels 419 | 67 352 . . . . . . . Hover . | . . . . . . . . . Flight . | . . . . . . . . . Fastest Speed 50 | 50 80 180 180 220 180 200 212 200 Average Speed 202 | 76 141 180 200 220 212 232 221 222 Slowest Speed 280 | 80 180 180 220 220 240 240 240 280 Overloaded Moves . | . . . . . . . . . Propulsion Burnouts . | . . . . . . . . . Robots Hopped . | . . . . . . . . . Cave-ins Triggered 1 | . 1 . . . . . . . Exploration Rate (%) 74 | 4 97 95 96 93 89 97 92 5 Regions Visited 8 Branch Regions 4 Pre-discovered Areas 4 | . . 3 . . 1 . . . Known Exits Taken 1 | . . . 1 . . . . . Unknown Exits Taken 7 | 1 1 1 . 1 1 1 1 . Scrap Searched 3 | . . 1 . 1 . 1 . . Spaces Dug 28 | . 5 . 6 . . . 17 . Terrain Destroyed 95 | 3 11 . 12 . 26 2 28 13 Melee 2 | . . . . . . . 2 . Projectile 49 | . 11 . 9 . . 2 26 1 AOE 44 | 3 . . 3 . 26 . . 12 Terrain Rammed . | . . . . . . . . . Walls Destroyed . | . . . . . . . . . Machines Disabled . | . . . . . . . . . Actions | -11 -10 -10 -9 -9 -9 -8 -8 -7 --------- Run | Scr Mat Min Mat Min Exi Min Mat Fac Total 8949 | 122 1100 577 1728 832 1778 861 1698 253 Wait 449 | 4 54 12 155 69 68 8 78 1 Move 7115 | 76 858 528 1303 732 1392 749 1311 166 Hop . | . . . . . . . . . Pick Up 211 | 11 28 6 31 12 65 16 41 1 Fast Attach 47 | 5 4 1 8 . 6 4 11 8 Attach 49 | 2 10 1 8 . 10 1 4 13 Detach 14 | . 4 . 2 . 5 . 3 . Swap 98 | . 6 1 39 . 9 6 34 3 Drop 217 | 1 14 8 34 12 69 25 51 3 Fire 707 | 23 120 19 148 7 135 36 161 58 Melee 32 | . . . . . 15 14 3 . Ram 1 | . 1 . . . . . . . Kick . | . . . . . . . . . Crush 5 | . 1 1 . . . 2 1 . Escape Stasis . | . . . . . . . . . Rewire . | . . . . . . . . . Trap 4 | . . . . . 4 . . . Miscellaneous . | . . . . . . . . . Route ------- -11/Scrapyard -10/Materials (discovered 4 exits: *Mat x3 / [*Min]) -10/Mines (discovered 2 exits: *Mat x2) -9/Materials (discovered 4 exits: *Mat x3 / *Min) -9/Mines (discovered 3 exits: *Mat x2 / *Exi) -9/Exiles -8/Mines (discovered 2 exits: *Mat x2) -8/Materials (discovered 4 exits: *Fac x2 / [*Sto x2]) -7/Factory History --------- Turn | Location | Event 39 | -11/Scrapyard | Discovered new exit (range 15) 128 | -11/Scrapyard | Entered Materials 301 | -10/Materials | Build established: Mutant 344 | -10/Materials | Discovered new exit (range 3) 447 | -10/Materials | Lost 3 parts (1p1n1w) 461 | -10/Materials | Destroyed 7 combat bots 603 | -10/Materials | Lost 3 parts (3w) 712 | -10/Materials | Discovered new exit (range 8) 978 | -10/Materials | Discovered new exit (range 14) 1178 | -10/Materials | Build established: Hauler-Mutant 1341 | -10/Materials | Discovered new exit (range 16) 1461 | -10/Materials | Crushed by falling debris 1461 | -10/Materials | Core integrity fell below 50% 1548 | -10/Materials | Repaired Lgt. Assault Rifle 1789 | -10/Materials | Entered Mines 1789 | -10/Mines | Accompanied by 1 ally 2019 | -10/Mines | Learned location of Zion (-7) 2048 | -10/Mines | Discovered new exit (range 3) 2059 | -10/Mines | Discovered new exit (range 11) 2115 | -10/Mines | Learned location of Storage (-8) 2215 | -10/Mines | Found a hidden stash of uninstalled traps 2585 | -10/Mines | Received a Rocket Launcher from a helpful Derelict 2820 | -10/Mines | Entered Materials 2820 | -9/Materials | Accompanied by 1 ally 2820 | -9/Materials | Evolved 2 slots: Utility x2 3109 | -9/Materials | Repaired Hvy. Assault Rifle 3150 | -9/Materials | Repaired Imp. Ion Engine 3185 | -9/Materials | Repaired Lgt. Treads 3521 | -9/Materials | Identified exit to Mines 3667 | -9/Materials | Discovered new exit (range 9) 4135 | -9/Materials | Discovered new exit (range 10) 4161 | -9/Materials | Central database locked down 4765 | -9/Materials | Core integrity fell below 50% 5039 | -9/Materials | Repaired Imp. Treads 5783 | -9/Materials | Discovered new exit (range 15) 6123 | -9/Materials | Entered Mines 6123 | -9/Mines | Accompanied by 1 ally 6124 | -9/Mines | Met a Derelict testing a Signal Generator 6135 | -9/Mines | Found Signal Generator 6262 | -9/Mines | Assembled infested the area 6782 | -9/Mines | Found the Drone Emporium 6793 | -9/Mines | Found Prototype Device 6998 | -9/Mines | Discovered new exit (range 5) 7166 | -9/Mines | Discovered new exit (range 5) 7544 | -9/Mines | Discovered new exit (range 8) 7552 | -9/Mines | Met a Derelict who couldn't figure out how to use a Trap Extractor 7838 | -9/Mines | Entered Exiles 7838 | -9/Exiles | Accompanied by 2 allies 7893 | -9/Exiles | Met 8R-AWN 7932 | -9/Exiles | Met EX-HEX 8035 | -9/Exiles | Met EX-DEC 8267 | -9/Exiles | Discovered new exit (range 10) 8497 | -9/Exiles | Visited The Gauntlet 8600 | -9/Exiles | Met EX-BIN 8633 | -9/Exiles | Aligned with FarCom system 8635 | -9/Exiles | Given EX-Vault access code 8688 | -9/Exiles | Opened EX-Vault 8703 | -9/Exiles | Found Gui. Plasma Cannon 8711 | -9/Exiles | Found YOLO Cannon 8716 | -9/Exiles | Found Army-in-a-Box 8768 | -9/Exiles | Warned to stay clear of 0b10 Research branches 9534 | -9/Exiles | Attacked by the Exiles 9700 | -9/Exiles | Destroyed 8R-AWN 9723 | -9/Exiles | Lost 5 parts (2p2n1w) 9736 | -9/Exiles | Found Exp. Targeting Computer 10164 | -9/Exiles | Destroyed EX-BIN 10310 | -9/Exiles | Destroyed EX-DEC 10539 | -9/Exiles | Destroyed EX-HEX 10788 | -9/Exiles | Found Deploy-a-Sentry 11334 | -9/Exiles | Stole four prototypes: Army-in-a-Box, Gui. Plasma Cannon, YOLO Cannon, Deploy-a-Sentry 11334 | -9/Exiles | Entered Mines 11334 | -8/Mines | Accompanied by 1 ally 11763 | -8/Mines | Core integrity fell below 20% 12049 | -8/Mines | Discovered new exit (range 4) 12549 | -8/Mines | Discovered new exit (range 12) 13279 | -8/Mines | Entered Materials 13279 | -8/Materials | Accompanied by 1 ally 13279 | -8/Materials | Evolved 2 slots: Utility x2 13301 | -8/Materials | Identified Thief Drone Bay 14415 | -8/Materials | Repaired Imp. Light Armor Plating 14477 | -8/Materials | Discovered new exit (range 16) 14740 | -8/Materials | Discovered new exit (range 13) 16289 | -8/Materials | Central database locked down 16467 | -8/Materials | Destroyed 7 combat bots 16721 | -8/Materials | Discovered new exit (range 20) 16807 | -8/Materials | Discovered new exit (range 14) 16829 | -8/Materials | Entered Factory 16829 | -7/Factory | Evolved 2 slots: Utility x2 17173 | -7/Factory | Garrison activated, responded to threat 17253 | -7/Factory | Core integrity fell below 50% 17284 | -7/Factory | Lost 11 parts (1p3n2u5w) 17352 | -7/Factory | Core integrity fell below 20% 17378 | -7/Factory | Destroyed by G-47 Trooper with Particle Gun Last Messages --------------- 17335_ G-47 Trooper destroyed. 17337_ HZNZPMCR RY==ET9B>